Cogmind - Beta 14 @@@ ROGUE MODE // 2024.08.30 @ 21:00:44 Player: Helstads_dog Result: Destroyed by Autobeam Turret with Autobeam Performance ------------- Evolutions (0) 0 Regions Visited (2) 400 Robots Destroyed (43) 215 Value Destroyed (1121) 1121 Prototype IDs (13) 260 Alien Tech Used (0) 0 Bonus (0) 0 TOTAL SCORE: 1996 Bonus ------- None Cogmind --------- Core Integrity 0/250 Matter 260/300 Energy 179/200 System Corruption 0% Temperature Warm (107) Movement Rolling (107) Ox1 Location -10/Subcaves Parts ------- > --- POWER (1) -------- Subdweller Power Source > --- PROPULSION (2) --- Wheel Subdweller Monowheel > --- UTILITY (2) ------ Large Storage Unit Light Armor Plating > --- WEAPON (2) ------- Subdweller Beam Cannon Subdweller Machine Gun > --- INVENTORY (15) --- Light Ion Engine Subdweller Power Source Light Treads Subdweller Beam Cannon Subdweller Beam Cannon Battle Rifle Battle Rifle Grenade Launcher Mining Laser Peak State ------------ > --- POWER ------------ Subdweller Power Source > --- PROPULSION ------- Light Treads Subdweller Monowheel > --- UTILITY ---------- Large Storage Unit Medium Armor Plating > --- WEAPON ----------- Subdweller Laser Battle Rifle > --- INVENTORY -------- Subdweller Power Source Subdweller Power Source Medium Storage Unit Light Armor Plating Subdweller Beam Cannon Subdweller Beam Cannon Battle Rifle Battle Rifle Subdweller Machine Gun Grenade Launcher Mining Laser [Rating: 13] Favorites ----------- Power Light Ion Engine Engine Light Ion Engine Propulsion Light Treads Treads Light Treads Wheel Subdweller Monowheel Utility Large Storage Unit Device Structural Scanner Storage Large Storage Unit Processor Signal Interpreter Protection Medium Armor Plating Weapon Subdweller Laser Energy Gun Subdweller Laser Energy Cannon Subdweller Beam Cannon Ballistic Gun Battle Rifle Ballistic Cannon Light Cannon Launcher Grenade Launcher Special Weapon Mining Laser Build | -11 -10 -10 ------- Run | Yrd Mat Sub Slots Evolved . | . . . Power . | . . . Propulsion . | . . . Utility . | . . . Weapon . | . . . Parts Attached 52 | 6 18 28 Power 8 | 1 2 5 Engine 8 | 1 2 5 Core . | . . . Reactor . | . . . Propulsion 10 | 2 2 6 Treads 6 | 2 2 2 Leg . | . . . Wheel 4 | . . 4 Hover . | . . . Flight . | . . . Utility 15 | 1 7 7 Device 1 | . 1 . Storage 5 | 1 2 2 Processor 1 | . 1 . Hackware . | . . . Protection 8 | . 3 5 Artifact . | . . . Weapon 19 | 2 7 10 Energy Gun 6 | 1 . 5 Energy Cannon 2 | . . 2 Ballistic Gun 6 | 1 2 3 Ballistic Cannon 2 | . 2 . Launcher 2 | . 2 . Special Weapon 1 | . 1 . Impact Weapon . | . . . Slashing Weapon . | . . . Piercing Weapon . | . . . Special Melee Weapon . | . . . Unidentified Prototypes . | . . . Parts Lost 3 | . . 3 Power . | . . . Propulsion 1 | . . 1 Utility 2 | . . 2 Weapon . | . . . Highest Loss Streak 1 | . . 1 To Critical Strikes . | . . . Average Slot Usage (%) 99 | . 99 99 Engine 14 | . 14 14 Treads 24 | . 27 22 Wheel 3 | . . 5 Storage 14 | . 14 14 Processor 1 | . 3 . Protection 12 | . 8 14 Energy Gun 11 | . 14 10 Energy Cannon 1 | . . 3 Ballistic Gun 8 | . 4 11 Ballistic Cannon 4 | . 8 2 Peak Build Rating 13 | 6 9 13 Average Rating 10 | 4 8 11 On Entrance 5 | . 6 9 Naked Turns . | . . . Heaviest Build 40 | 12 37 40 Greatest Support 40 | 40 40 40 Greatest Overweight (x) 3 | . . 3 Average Overweight (x) . | . . . Largest Inventory Capacity 15 | 8 15 15 Average Capacity 14 | 7 14 14 Most Carried 15 | 1 14 15 Average Carried 11 | . 10 12 Final Capacity 15 | 8 15 15 Final Carried 13 | 1 13 9 Class Distribution -------------------- 100% | Mutant Dominant Class ---------------- Mutant | -10/Materials Mutant | -10/Subcaves Resources | -11 -10 -10 ----------- Run | Yrd Mat Sub Matter Collected 1101 | 158 423 520 Remotely . | . . . Salvage Created 1282 | . 500 782 Parts 103 | . 40 63 Haulers Intercepted . | . . . Recyclers Shooed 1 | . 1 . Parts Field Recycled . | . . . Retrieved Matter . | . . . Parts Self-Destructed 21 | . . 21 Prevented . | . . . Kills | -11 -10 -10 ------- Run | Yrd Mat Sub Combat Hostiles Destroyed 36 | . 12 24 Guns 25 | . 7 18 Cannons 10 | . 4 6 Classes Destroyed 8 | . 5 3 Recycler 2 | . 2 . Operator 1 | . 1 . Turret 1 | . . 1 Watcher 3 | . 3 . Swarmer 14 | . 8 6 Grunt 5 | . 4 1 Sentry 1 | . . 1 Subdweller 16 | . . 16 Best Kill Streak 4 | . 3 4 Combat Bots Only 4 | . 3 4 Max Kills in Single Turn 1 | . 1 1 Gunslinging . | . . . Exploded . | . . . Melee . | . . . Uniques/NPCs Destroyed . | . . . Combat | -11 -10 -10 -------- Run | Yrd Mat Sub Hostile Shots Fired 207 | . 52 155 Missed 60 | . 14 46 Damage Taken 1938 | . 322 1616 Core 252 | . 45 207 Absorbed by Shields . | . . . Regen/Repaired (Parts) 147 | . 147 . Core Remaining (%) 100 | 100 . . Volleys Fired 171 | . 52 119 Largest 2 | . 2 2 Hottest 110 | . 100 110 Shots Fired 294 | . 98 196 Gun 218 | . 64 154 Cannon 70 | . 28 42 Launcher . | . . . Special 6 | . 6 . Kinetic 135 | . 46 89 Thermal 159 | . 52 107 Explosive . | . . . Electromagnetic . | . . . Robot Hit Streak 22 | . 8 22 Robot Miss Streak 6 | . 6 2 Penetration Max . | . . . Secondary Targets 3 | . 2 1 Max Gunslinging Chain 1 | . 1 1 Shots Hit Robots 180 | . 51 129 Core Hits 63 | . 23 40 Critical Kills . | . . . Critical Parts Destroyed 1 | . . 1 Critical Strikes 6 | . 4 2 Burn 4 | . 4 . Destroy 1 | . . 1 Blast 1 | . . 1 Melee Attacks . | . . . Impact . | . . . Slashing . | . . . Piercing . | . . . Sneak Attacks . | . . . Combat Hostiles . | . . . Follow-up Attacks . | . . . Damage Inflicted 2870 | . 697 2173 Guns 2132 | . 504 1628 Cannons 738 | . 193 545 Explosions . | . . . Melee . | . . . Ramming . | . . . Kinetic 1478 | . 324 1154 Thermal 1392 | . 373 1019 Explosive . | . . . Electromagnetic . | . . . Impact . | . . . Slashing . | . . . Piercing . | . . . Highest Corruption . | . . . Average Corruption . | . . . Corruption Purged . | . . . Corruption Blocked . | . . . Overload Shots . | . . . Overflow Damage 24 | . . 24 Projectiles 24 | . . 24 Explosions . | . . . Melee . | . . . Knockbacks 7 | . 4 3 Impact . | . . . Kinetic 6 | . 3 3 Secondary 1 | . 1 . Self-Inflicted Damage . | . . . Shots . | . . . Rammed . | . . . Targets Rammed . | . . . Kicked . | . . . Crushed . | . . . Highest Temperature 216 | . 216 102 Average Temperature 48 | . 64 17 Received Heat Transfer 312 | . 60 252 Siege Activations . | . . . Robots Corrupted . | . . . Combat Hostiles . | . . . Parts Fried . | . . . Impact Corruptions . | . . . Robots Melted 1 | . 1 . Combat Hostiles 1 | . 1 . Parts Melted 3 | . 2 1 Heat Transferred 3043 | . 1406 1637 Parts Sabotaged . | . . . Parts Stolen . | . . . Parts Stripped . | . . . Power Chain Reactions . | . . . Alert | -11 -10 -10 ------- Run | Yrd Mat Sub Peak Influence 192 | . 192 . Initial . | . . . Average 87 | . 91 . Maximum Alert Level . | . . . Low Security (%) 100 | 100 100 . Level 1 . | . . . Level 2 . | . . . Level 3 . | . . . Level 4 . | . . . Level 5 . | . . . High Security . | . . . Max Security . | . . . Squads Dispatched 2 | . 2 . Investigation . | . . . Extermination . | . . . Reinforcement 2 | . 2 . Assault . | . . . Garrison . | . . . Intercept . | . . . Searches Triggered . | . . . Construction Impeded . | . . . Haulers Reinforced . | . . . Active Scanning Responses . | . . . Cargo Convoy Interrupts . | . . . Stealth | -11 -10 -10 --------- Run | Yrd Mat Sub Distress Signals . | . . . Communications Jammed . | . . . Distress Signals . | . . . Times Spotted 52 | . 23 29 Peak Tracking Total 4 | . 3 4 Tactical Retreats 3 | . 2 1 Traps | -11 -10 -10 ------- Run | Yrd Mat Sub Traps Triggered 1 | . 1 . Indirectly . | . . . Trap Hack Attempts . | . . . Triggered . | . . . Disarmed . | . . . Reprogrammed . | . . . Reused . | . . . Traps Extracted . | . . . Installed . | . . . Triggered . | . . . Machines | -11 -10 -10 ---------- Run | Yrd Mat Sub Machines Disabled 2 | . 2 . Max in Single Turn 1 | . 1 . Machines Repaired . | . . . Machines Dismantled . | . . . Machines Sabotaged . | . . . Overloaded Fab Kills . | . . . Hacking | -11 -10 -10 --------- Run | Yrd Mat Sub Machines Accessed 9 | . 5 4 Terminals 3 | . 3 . Fabricators . | . . . Repair Stations 1 | . 1 . Recycling Units 1 | . 1 . Scanalyzers . | . . . Garrison Access . | . . . Total Hacks 38 | . 22 16 Successful 27 | . 11 16 Failed 11 | . 11 . Catastrophic 1 | . 1 . Database Lockouts . | . . . Manual 8 | . 7 1 Terminals 11 | . 11 . Fabricators . | . . . Repair Stations 8 | . 8 . Recycling Units 3 | . 3 . Scanalyzers . | . . . Garrison Access . | . . . Terminal Hacks 19 | . 3 16 Record 13 | . . 13 Prototype ID Bank 1 | . 1 . Open Door 1 | . . 1 Branch Access Points 1 | . 1 . Emergency Access Points 1 | . 1 . Derelict Proto ID Bank 1 | . . 1 Release Object 1 | . . 1 Fabricator Hacks . | . . . Repair Station Hacks 6 | . 6 . Scan Component 3 | . 3 . Repair 3 | . 3 . Recycling Unit Hacks 2 | . 2 . Report Inventory 1 | . 1 . Retrieve Matter 1 | . 1 . Scanalyzer . | . . . Garrison Access Hacks . | . . . Unauthorized Hacks . | . . . Terminals . | . . . Fabricators . | . . . Repair Stations . | . . . Recycling Units . | . . . Scanalyzers . | . . . Garrison Access . | . . . Data Cores Recovered . | . . . Used . | . . . Hacking Detections 4 | . 4 . Full Trace Events . | . . . Feedback Events . | . . . Feedback Blocked . | . . . Robot Schematics Acquired . | . . . Robots Built . | . . . Authchips . | . . . Time . | . . . Total Robot Build Rating . | . . . Part Schematics Acquired . | . . . Parts Built . | . . . Authchips . | . . . Time . | . . . Total Part Build Rating . | . . . Parts Repaired 3 | . 3 . Time 78 | . 78 . Parts Recycled . | . . . Recycled Matter . | . . . Retrieved Matter . | . . . Retrieved Components . | . . . Parts Scanalyzed . | . . . Part Schematics Acquired . | . . . Parts Damaged . | . . . Bothacking | -11 -10 -10 ------------ Run | Yrd Mat Sub Used RIF Installer . | . . . Robots Hacked . | . . . Non-combat . | . . . Combat . | . . . Robot Hacks Applied . | . . . Relay Couplers Released . | . . . Fabnet Peak Effective % . | . . . Robots Rewired . | . . . Allies Hacked . | . . . Hacks Repelled . | . . . Allies | -11 -10 -10 -------- Run | Yrd Mat Sub Total Allies . | . . . Largest Group . | . . . Highest-Rated Group . | . . . Highest-Rated Ally . | . . . Total Orders . | . . . Ally Attacks . | . . . Total Damage . | . . . Kills . | . . . Allies Corrupted . | . . . Allies Melted . | . . . Intel | -11 -10 -10 ------- Run | Yrd Mat Sub Robot Analysis Total . | . . . Derelict Logs Recovered 2 | . . 2 Drone Launches . | . . . Drone Recoveries . | . . . Exploration | -11 -10 -10 ------------- Run | Yrd Mat Sub Turns Passed 3888 | 66 1360 2462 Spaces Moved 2085 | 37 673 1375 Core 2 | 2 . . Treads 1715 | 35 673 1007 Legs . | . . . Wheels 368 | . . 368 Hover . | . . . Flight . | . . . Fastest Speed 50 | 50 160 107 Average Speed 152 | 154 160 148 Slowest Speed 240 | 160 160 240 Overloaded Moves . | . . . Propulsion Burnouts . | . . . Robots Hopped . | . . . Cave-ins Triggered . | . . . Exploration Rate (%) 62 | 5 99 82 Regions Visited 2 Branch Regions 1 Pre-discovered Areas 2 | . . 2 Known Exits Taken . | . . . Unknown Exits Taken 2 | 1 1 . Scrap Searched 6 | . . 6 Spaces Dug 6 | . 6 . Terrain Destroyed 10 | . 6 4 Melee . | . . . Projectile 10 | . 6 4 AOE . | . . . Terrain Rammed . | . . . Walls Destroyed . | . . . Machines Disabled . | . . . Actions | -11 -10 -10 --------- Run | Yrd Mat Sub Total 2501 | 44 842 1615 Wait 125 | . 79 46 Move 2083 | 36 672 1375 Hop . | . . . Pick Up 33 | 2 14 17 Fast Attach 16 | 5 5 6 Attach 18 | 1 3 14 Detach 7 | . 2 5 Swap 18 | . 10 8 Drop 29 | . 5 24 Fire 171 | . 52 119 Melee . | . . . Ram . | . . . Kick . | . . . Crush . | . . . Escape Stasis . | . . . Rewire . | . . . Trap . | . . . Miscellaneous 1 | . . 1 Route ------- -11/Scrapyard -10/Materials (discovered 5 exits: *Mat x3 / *Min / *Sub) -10/Subcaves (discovered 3 exits: *Mat x2 / *Rec) History --------- Turn | Location | Event 36 | -11/Scrapyard | Discovered new exit (range 15) 67 | -11/Scrapyard | Entered Materials 307 | -10/Materials | Build established: Mutant 463 | -10/Materials | Discovered new exit (range 10) 628 | -10/Materials | Discovered new exit (range 16) 767 | -10/Materials | Identified exit to Mines 850 | -10/Materials | Identified exit to Materials 1171 | -10/Materials | Discovered exit to Materials (range 9) 1275 | -10/Materials | Repaired Lgt. Treads 1301 | -10/Materials | Repaired Lgt. Treads 1333 | -10/Materials | Repaired Lgt. Treads 1395 | -10/Materials | Discovered exit to Materials (range 5) 1412 | -10/Materials | Discovered new exit (range 10) 1427 | -10/Materials | Entered Subcaves 1838 | -10/Subcaves | Visited Clippyterm 1843 | -10/Subcaves | Identified exit to Materials 1843 | -10/Subcaves | Identified exit to Recycling 1843 | -10/Subcaves | Learned location of Deep Caves (-6) 2260 | -10/Subcaves | Learned Materials interactive machine intel 2271 | -10/Subcaves | Released subatomizers from SUBCON Basin 2519 | -10/Subcaves | Core integrity fell below 50% 2679 | -10/Subcaves | Shifting Twisted Machinery released Sub. Laser 2714 | -10/Subcaves | Shifting Twisted Machinery released Sub. Machine Gun 3079 | -10/Subcaves | A swath of the cavern ceiling suddenly collapsed 3137 | -10/Subcaves | Ambushed by Subdweller buried in earth 3687 | -10/Subcaves | Visited 4L-MR0's lab 3809 | -10/Subcaves | Shifting Twisted Machinery released Sub. Beam Cannon 3838 | -10/Subcaves | Shifting Twisted Machinery released Sub. Monowheel 3868 | -10/Subcaves | Core integrity fell below 20% 3889 | -10/Subcaves | Destroyed by Autobeam Turret with Autobeam Last Messages --------------- I hear [REDACTED] exploded during the installation process. I did warn them to fully install it before trying to fire, and something tells me that's where things went wrong. Still I'm glad they didn't listen, that way I'm not culpable for whatever they would've done with it. If we're lucky even some of the others got blasted, too. 03711_ 4L-MR0 mumbles: "I'm surprised some of them are even willing to come in here given their fear of my usual visitors." 03736_ Connecting with 4L-MR0's Prototype Logs... Sub. Beam Cannon falls loose from the Twisted Machinery. 03811_ Dropped Broken Sub. Monowheel. 03811_ Acquired Wheel. 03813_ Sub. Monowheel shoots sparks and powers down. 03814_ Dropped Broken Sub. Monowheel. 03824_ Acquired Sub. Beam Cannon. Sub. Monowheel falls loose from the Twisted Machinery. 03846_ Acquired Sub. Monowheel. 03869_ S-10 Pest destroyed. 03873_ Destroyed Lgt. Ion Engine. 03880_ S-10 Pest destroyed. 03886_ Autobeam Turret destroyed. Map ----- +----------------------------------------------------+ | ?# ## #### " ??????????????????? | | ## #### "" #?????????????????????? | | # ##??# " #?????????????????????? | | ## ##??# % = "" #?????????????????????? | | ?## #??## = " ##????????????????????? | | ??# #???###### " ##???????????????????? | | ??## #???????## & ##??????????????????? | | ?### #???????# &%" ##?????????????????? | | ## ##??????# ! " ##????????????????? | | ####???# """ ##???????????????? | | ##??# ##### ##??????????????? | | ##?# ### " "#???# " ""#??????????????? | | #?# ?## #?###""" #??????????### ? | | ## #?# ?# ## ####???? | | ####### #? ?### ## | | ## ##??# ### ???## # | | ## #### #?# ????####### ###???# | | ##? ??????????## ## #?????# | | #??###???????????## #?# ##??# | | ##???????????????## #??# #??# | | ### #???????????????# #???# #?# | | ### #???????????????# #????# ### ??? | | # #????????????#### #????? #????? | | #????????????# #?????? #????? | | ## ##?#" % # #### ##??????# ####??? | | ## # #?#"" @ #??## #### | | ## ##> %[# # #??## | | ## # ###""t % # ## #### % | | #### # ##?#" #;# ## ##? ### | | ### ## #??#" ?### # ??# % #?# ## | | ## #??#"""?????# # ##??# ####??# % ## | | ### ##??#?#?????? ##???####?????# | | ###???????????#### #???????????## | | #####?####???### ### ##??????###??# | | ## ### ### ##?## #??????# ### ## | | ^## ## ### #??????# ## ### | | ## #???????# ###?## | | # ### ## #????????# #????# | | # ## #?####????## #???## | | ### %% % ### ####??# #???# | | ??# # # #### #???# | | ??# ## ##???# # | | ??# # ### #????##? | | ??# ## #######?## *# # ##??????? | | ??## ## ##????????# ##### ##???????? | | ???## ####?????????## ######## #???#####????????? | | ????###?????????????####??????###????????????????? | | ?????????????????????????????????????????????????? | | ?????????????????????????????????????????????????? | | ?????????????????????????????????????????????????? | +----------------------------------------------------+ Best States ------------- Heat Dissipation 25 Energy Generation 15 Energy Capacity 250 Matter Stores 300 Matter Capacity 300 Sight Range 16 Terrain Scan Density 10 Armor Coverage 225 Evasion (%) 40 Recoil Reduction 2 Item Schematics ----------------- None Robot Schematics ------------------ None Fabricated ------------ Nothing Alien Tech Used ----------------- None Achievements -------------- None Challenges ------------ None Game ------ Seed HackingGravmagPendant Manual? 0 Play Time 01:14:44 Cumulative 9.2 hours Start 2024.08.30 @ 10:36:50 End 2024.08.30 @ 21:00:44 Sessions 3 Manual Loads 0 Difficulty Rogue Special Mode None Game No. 6 Rogue 6 Adventurer 0 Explorer 0 Win Type - Total 0 Types 0/0/0/0/0/0/0/0/0 Lore% 6 Gallery% 7 Achievement% 30 Wizard Run 0 Options --------- Layout 0 ASCII 0 Keyboard 0 Movement Mouse Keybinds 0 Fullscreen 1 Font 16/SmallcapsGlow Map View 37x27 Zoom Use 81% Tactical HUD 1 Map Filters NONE Filters NONE Steam 1 RUN: a415509d-9d07-457e-9210-640fc370628b